Cogmind - Beta 15 @@@ ROGUE MODE // 2025.07.04 @ 21:47:18 Player: mathSq Result: Destroyed by Y-54 Guardian with Flak Gun Performance ------------- Evolutions (0) 0 Regions Visited (3) 600 Robots Destroyed (21) 105 Value Destroyed (631) 631 Prototype IDs (0) 0 Alien Tech Used (0) 0 Bonus (0) 0 TOTAL SCORE: 1336 Bonus ------- None Cogmind --------- Core Integrity 0/250 Matter 226/300 Energy 250/250 System Corruption 0% Temperature Cool (25) Movement Treading (240) Ox1 Location -7/Recycling Parts ------- > --- POWER (1) -------- Ion Engine > --- PROPULSION (2) --- Light Treads > --- UTILITY (2) ------ Large Storage Unit Core Shielding > --- WEAPON (2) ------- Battle Rifle Subdweller Machine Gun > --- INVENTORY (15) --- Subdweller Power Source Spiked Treads Wheel Wheel Improved Heat Sink Seismic Detector Seismic Detector Light Armor Plating Light Armor Plating Light Armor Plating Scrap Shield Subdweller Laser Subdweller Machine Gun Mining Laser Peak State ------------ > --- POWER ------------ Ion Engine > --- PROPULSION ------- Light Treads Wheel > --- UTILITY ---------- Large Storage Unit Seismic Detector > --- WEAPON ----------- Battle Rifle Subdweller Machine Gun > --- INVENTORY -------- Subdweller Power Source Wheel Wheel Compact Wheel Improved Heat Sink Seismic Detector Core Shielding Light Armor Plating Light Armor Plating Light Armor Plating Scrap Shield Subdweller Laser Subdweller Machine Gun Mining Laser [Rating: 11] Favorites ----------- Power Ion Engine Engine Ion Engine Propulsion Light Treads Treads Light Treads Wheel Wheel Utility Seismic Detector Device Seismic Detector Storage Large Storage Unit Protection Light Armor Plating Weapon Medium Laser Energy Gun Medium Laser Ballistic Gun Subdweller Machine Gun Special Weapon Mining Laser Build | -11 -10 -10 -7 ------- Run | Yrd Mat Sub Rec Slots Evolved . | . . . . Power . | . . . . Propulsion . | . . . . Utility . | . . . . Weapon . | . . . . Parts Attached 19 | 7 5 7 . Power 3 | 1 2 . . Engine 3 | 1 2 . . Core . | . . . . Reactor . | . . . . Propulsion 4 | 2 . 2 . Treads 3 | 2 . 1 . Leg . | . . . . Wheel 1 | . . 1 . Hover . | . . . . Flight . | . . . . Utility 6 | 2 3 1 . Device 1 | 1 . . . Storage 2 | 1 1 . . Processor . | . . . . Hackware . | . . . . Protection 3 | . 2 1 . Artifact . | . . . . Weapon 6 | 2 . 4 . Energy Gun 1 | 1 . . . Energy Cannon . | . . . . Ballistic Gun 4 | 1 . 3 . Ballistic Cannon . | . . . . Launcher . | . . . . Special Weapon 1 | . . 1 . Impact Weapon . | . . . . Slashing Weapon . | . . . . Piercing Weapon . | . . . . Special Melee Weapon . | . . . . Unidentified Prototypes . | . . . . Parts Lost 2 | . . 1 1 Power . | . . . . Propulsion 2 | . . 1 1 Utility . | . . . . Weapon . | . . . . Highest Loss Streak 1 | . . 1 1 To Critical Strikes . | . . . . Average Backups 13 | 4 12 14 14 Power . | . 1 . 1 Propulsion 3 | 2 4 3 3 Utility 5 | . 4 6 7 Weapon 3 | . 2 3 3 Tool/Special . | . . . . Unused Backups 20 | . 6 4 10 Power 2 | . 1 . 1 Propulsion 8 | . 4 1 3 Utility 6 | . . 1 5 Weapon 4 | . 1 2 1 Tool/Special . | . . . . Average Slot Usage (%) 100 | . 100 100 100 Engine 14 | . 14 14 14 Treads 20 | . 28 15 14 Wheel 7 | . . 12 14 Device 12 | . 12 12 . Storage 14 | . 14 14 14 Protection 1 | . 1 1 14 Energy Gun 12 | . 14 11 . Ballistic Gun 15 | . 14 15 28 Peak Build Rating 11 | 7 8 11 11 Average Rating 8 | 5 7 9 11 On Entrance 6 | . 7 8 11 Naked Turns . | . . . . Heaviest Build 34 | 13 32 34 32 Greatest Support 40 | 40 40 40 20 Greatest Overweight (x) 3 | 3 . 3 1 Average Overweight (x) 1 | . . 2 1 Largest Inventory Capacity 15 | 8 15 15 15 Average Capacity 13 | 7 13 15 15 Most Carried 15 | 7 15 15 15 Average Carried 13 | 4 12 14 15 Final Capacity 15 | 8 15 15 15 Final Carried 15 | 7 15 15 15 Class Distribution -------------------- 100% | Mutant Dominant Class ---------------- Mutant | -10/Materials Mutant | -10/Subcaves Mutant | -7/Recycling Resources | -11 -10 -10 -7 ----------- Run | Yrd Mat Sub Rec Matter Collected 714 | 268 274 172 . Remotely . | . . . . Salvage Created 664 | 21 495 148 . Parts 39 | 4 28 7 . Haulers Intercepted . | . . . . Recyclers Shooed . | . . . . Parts Field Recycled . | . . . . Retrieved Matter . | . . . . Parts Self-Destructed 5 | . . 5 . Prevented . | . . . . Kills | -11 -10 -10 -7 ------- Run | Yrd Mat Sub Rec Combat Hostiles Destroyed 17 | . 12 5 . Guns 17 | . 12 5 . Classes Destroyed 5 | 1 1 3 . Tunneler 2 | 1 1 . . Turret 2 | . . 2 . Swarmer 3 | . . 3 . Grunt 12 | . 12 . . Subdweller 2 | . . 2 . Best Kill Streak 3 | 1 3 3 . Combat Bots Only 3 | . 3 3 . Max Kills in Single Turn 1 | 1 1 1 . Gunslinging . | . . . . Exploded . | . . . . Melee . | . . . . Uniques/NPCs Destroyed . | . . . . Combat | -11 -10 -10 -7 -------- Run | Yrd Mat Sub Rec Hostile Shots Fired 152 | . 54 80 18 Missed 50 | . 14 29 7 Hits 102 | . 40 51 11 Projectile 102 | . 40 51 11 Critical Strikes 1 | . 1 . . Damage Taken 1116 | . 516 519 81 Core 251 | . 88 153 10 Absorbed by Shields . | . . . . Redirected to Shielding 9 | . . 7 2 Core Remaining (%) 100 | 100 . . . Volleys Fired 74 | 1 48 23 2 Largest 2 | 2 2 2 2 Hottest 100 | 70 70 100 55 Shots Fired 144 | 2 96 42 4 Gun 140 | 2 96 38 4 Cannon . | . . . . Launcher . | . . . . Special 4 | . . 4 . Kinetic 84 | 1 48 31 4 Thermal 60 | 1 48 11 . Explosive . | . . . . Electromagnetic . | . . . . Robot Hit Streak 12 | 1 12 9 5 Robot Miss Streak 4 | . 4 3 1 Penetration Max . | . . . . Secondary Targets 3 | . 1 2 . Max Gunslinging Chain 1 | . 1 1 . Shots Hit Robots 99 | 1 71 24 3 Core Hits 41 | 1 26 13 1 Critical Kills . | . . . . Critical Parts Destroyed 2 | . 2 . . Critical Strikes 7 | . 4 3 . Burn 4 | . 2 2 . Destroy 3 | . 2 1 . Melee Attacks . | . . . . Impact . | . . . . Slashing . | . . . . Piercing . | . . . . Sneak Attacks . | . . . . Combat Hostiles . | . . . . Follow-up Attacks . | . . . . Damage Inflicted 1377 | 13 917 395 52 Guns 1377 | 13 917 395 52 Cannons . | . . . . Explosions . | . . . . Melee . | . . . . Ramming . | . . . . Kinetic 799 | . 426 321 52 Thermal 578 | 13 491 74 . Explosive . | . . . . Electromagnetic . | . . . . Impact . | . . . . Slashing . | . . . . Piercing . | . . . . Highest Corruption . | . . . . Average Corruption . | . . . . Corruption Purged . | . . . . Corruption Blocked . | . . . . Overload Shots . | . . . . Overflow Damage . | . . . . Projectiles . | . . . . Explosions . | . . . . Melee . | . . . . Knockbacks . | . . . . Impact . | . . . . Kinetic . | . . . . Secondary . | . . . . Self-Inflicted Damage . | . . . . Shots . | . . . . Rammed . | . . . . Targets Rammed . | . . . . Kicked . | . . . . Crushed . | . . . . Highest Temperature 240 | 9 240 5 20 Average Temperature 71 | 6 73 5 11 Received Heat Transfer 525 | . 309 192 24 Siege Activations . | . . . . Martial Activations . | . . . . Shielding Activations . | . . . . Robots Disrupted . | . . . . Combat Hostiles . | . . . . Robots Corrupted . | . . . . Combat Hostiles . | . . . . Parts Fried . | . . . . Impact Corruptions . | . . . . Robots Melted . | . . . . Combat Hostiles . | . . . . Parts Melted 4 | . 3 1 . Heat Transferred 1998 | 37 1591 370 . Parts Sabotaged . | . . . . Parts Stolen . | . . . . Parts Stripped . | . . . . Power Chain Reactions . | . . . . Alert | -11 -10 -10 -7 ------- Run | Yrd Mat Sub Rec Maximum Alert Level . | . . . . Low Security (%) 100 | 100 100 . 100 Level 1 . | . . . . Level 2 . | . . . . Level 3 . | . . . . Level 4 . | . . . . Level 5 . | . . . . High Security . | . . . . Max Security . | . . . . Peak Influence 87 | 5 87 . 70 Initial 70 | . . . 70 Average 28 | . 31 . 70 Influence Increases 503 | 5 338 160 . Destroy 0b10 Robot/C 340 | . 240 100 . Destroy 0b10 Robot/NC 10 | 5 5 . . Destroy Leader 50 | . 50 . . Successful Hack 26 | . 26 . . Destroy Structure 2 | . 2 . . Lose Combat Pursuer 75 | . 15 60 . Influence Decreases 443 | 5 265 85 88 Entered New Map 114 | . . 36 78 Time Decay 319 | 5 265 49 . Lost Part 10 | . . . 10 Squads Dispatched 2 | . 2 . . Investigation 1 | . 1 . . Extermination . | . . . . Reinforcement 1 | . 1 . . Assault . | . . . . Garrison . | . . . . Intercept . | . . . . Searches Triggered . | . . . . Construction Impeded . | . . . . Haulers Reinforced . | . . . . Active Scanning Responses . | . . . . Cargo Convoy Interrupts . | . . . . Stealth | -11 -10 -10 -7 --------- Run | Yrd Mat Sub Rec Distress Signals 4 | . 4 . . Communications Jammed . | . . . . Distress Signals . | . . . . Times Spotted 33 | . 22 10 1 Peak Tracking Total 6 | . 4 6 1 Tactical Retreats 3 | . 1 2 . Traps | -11 -10 -10 -7 ------- Run | Yrd Mat Sub Rec Traps Triggered 1 | . 1 . . Indirectly . | . . . . Trap Hack Attempts . | . . . . Triggered . | . . . . Disarmed . | . . . . Reprogrammed . | . . . . Reused . | . . . . Traps Extracted . | . . . . Installed . | . . . . Triggered . | . . . . Machines | -11 -10 -10 -7 ---------- Run | Yrd Mat Sub Rec Machines Disabled 2 | . . 2 . Max in Single Turn 1 | . . 1 . Machines Repaired . | . . . . Machines Dismantled . | . . . . Machines Sabotaged . | . . . . Overloaded Fab Kills . | . . . . Hacking | -11 -10 -10 -7 --------- Run | Yrd Mat Sub Rec Machines Accessed 6 | . 5 1 . Terminals 4 | . 4 . . Fabricators . | . . . . Repair Stations . | . . . . Recycling Units 1 | . 1 . . Scanalyzers . | . . . . Garrison Access . | . . . . Total Hacks 18 | . 13 5 . Successful 12 | . 7 5 . Failed 6 | . 6 . . Catastrophic 1 | . 1 . . Database Lockouts . | . . . . Manual 5 | . 5 . . Terminals 11 | . 11 . . Fabricators . | . . . . Repair Stations . | . . . . Recycling Units 2 | . 2 . . Scanalyzers . | . . . . Garrison Access . | . . . . Terminal Hacks 11 | . 6 5 . Record 5 | . . 5 . Robot Analysis 4 | . 4 . . Locate Traps 1 | . 1 . . Hauler Manifests 1 | . 1 . . Fabricator Hacks . | . . . . Repair Station Hacks . | . . . . Recycling Unit Hacks 1 | . 1 . . Retrieve Components 1 | . 1 . . Scanalyzer . | . . . . Garrison Access Hacks . | . . . . Unauthorized Hacks . | . . . . Terminals . | . . . . Fabricators . | . . . . Repair Stations . | . . . . Recycling Units . | . . . . Scanalyzers . | . . . . Garrison Access . | . . . . Data Cores Recovered . | . . . . Used . | . . . . Hacking Detections 5 | . 5 . . Full Trace Events . | . . . . Feedback Events . | . . . . Feedback Blocked . | . . . . Robot Schematics Acquired . | . . . . Robots Built . | . . . . Authchips . | . . . . Time . | . . . . Total Robot Build Rating . | . . . . Part Schematics Acquired . | . . . . Parts Built . | . . . . Authchips . | . . . . Time . | . . . . Total Part Build Rating . | . . . . Parts Repaired . | . . . . Time . | . . . . Parts Recycled . | . . . . Recycled Matter . | . . . . Retrieved Matter . | . . . . Retrieved Components 1 | . 1 . . Parts Scanalyzed . | . . . . Part Schematics Acquired . | . . . . Parts Damaged . | . . . . Bothacking | -11 -10 -10 -7 ------------ Run | Yrd Mat Sub Rec Used RIF Installer . | . . . . Robots Hacked . | . . . . Non-combat . | . . . . Combat . | . . . . Robot Hacks Applied . | . . . . Relay Couplers Released . | . . . . Fabnet Peak Effective % . | . . . . Robots Rewired . | . . . . Allies Hacked . | . . . . Hacks Repelled . | . . . . Allies | -11 -10 -10 -7 -------- Run | Yrd Mat Sub Rec Total Allies . | . . . . Largest Group . | . . . . Highest-Rated Group . | . . . . Highest-Rated Ally . | . . . . Total Orders . | . . . . Ally Attacks . | . . . . Total Damage . | . . . . Kills . | . . . . Allies Corrupted . | . . . . Allies Melted . | . . . . Intel | -11 -10 -10 -7 ------- Run | Yrd Mat Sub Rec Active Infowar (turns) 2234 | 38 826 1370 . Seismic 2234 | 38 826 1370 . Robot Analysis Total 4 | . 4 . . Derelict Logs Recovered . | . . . . Drone Launches . | . . . . Drone Recoveries . | . . . . Exploration | -11 -10 -10 -7 ------------- Run | Yrd Mat Sub Rec Turns Passed 2577 | 122 955 1491 9 Spaces Moved 1527 | 55 404 1066 2 Core 11 | 11 . . . Treads 567 | 44 404 117 2 Legs . | . . . . Wheels 949 | . . 949 . Hover . | . . . . Flight . | . . . . Fastest Speed 50 | 50 160 110 240 Average Speed 139 | 160 160 129 240 Slowest Speed 240 | 200 160 240 240 Overloaded Moves . | . . . . Propulsion Burnouts . | . . . . Robots Hopped . | . . . . Potential Cave-ins . | . . . . Cave-ins Triggered . | . . . . Exploration Rate (%) 35 | 5 75 59 2 Regions Visited 3 Branch Regions 2 Pre-discovered Areas 1 | . . 1 . Known Exits Taken . | . . . . Unknown Exits Taken 3 | 1 1 1 . Scrap Searched . | . . . . Spaces Dug . | . . . . Terrain Destroyed . | . . . . Melee . | . . . . Projectile . | . . . . AOE . | . . . . Terrain Rammed . | . . . . Walls Destroyed . | . . . . Machines Disabled . | . . . . Actions | -11 -10 -10 -7 --------- Run | Yrd Mat Sub Rec Total 1825 | 83 617 1121 4 Wait 146 | 14 127 5 . Move 1524 | 54 403 1065 2 Hop . | . . . . Pick Up 27 | 7 16 4 . Fast Attach 9 | 7 . 2 . Attach 3 | . 1 2 . Detach 1 | . . 1 . Swap 24 | . 12 12 . Drop 17 | . 10 7 . Fire 74 | 1 48 23 2 Melee . | . . . . Ram . | . . . . Kick . | . . . . Crush . | . . . . Escape Stasis . | . . . . Rewire . | . . . . Trap . | . . . . Miscellaneous . | . . . . Route ------- -11/Scrapyard -10/Materials (discovered 4 exits: [*Mat x2] / [*Min] / *Sub) -10/Subcaves (discovered 3 exits: [*Mat x2] / [*Rec]) -7/Recycling History --------- Turn | Location | Event 34 | -11/Scrapyard | Discovered new exit (range 16) 123 | -11/Scrapyard | Entered Materials 273 | -10/Materials | Discovered new exit (range 8) 308 | -10/Materials | Build established: Mutant 477 | -10/Materials | Discovered new exit (range 16) 800 | -10/Materials | Discovered new exit (range 16) 1044 | -10/Materials | Discovered new exit (range 6) 1078 | -10/Materials | Entered Subcaves 1079 | -10/Subcaves | Approached by a straggling Scientist 1249 | -10/Subcaves | Core integrity fell below 50% 1257 | -10/Subcaves | Core integrity fell below 20% 1423 | -10/Subcaves | Visited Clippyterm 1426 | -10/Subcaves | Learned Factory trap positions 1426 | -10/Subcaves | Learned Factory garrison access intel 2019 | -10/Subcaves | Learned location of Zion (-7) 2019 | -10/Subcaves | Met a Zionite searching for "candidates" 2211 | -10/Subcaves | Shifting Twisted Machinery released Sub. Machine Gun 2282 | -10/Subcaves | Shifting Twisted Machinery released Hvy. Riot Gun 2290 | -10/Subcaves | Discovered new exit (range 11) 2363 | -10/Subcaves | Shifting Twisted Machinery released Sub. Optics 2373 | -10/Subcaves | Shifting Twisted Machinery released Spk. Treads 2418 | -10/Subcaves | Discovered new exit (range 5) 2517 | -10/Subcaves | Discovered new exit (range 9) 2569 | -10/Subcaves | Entered Recycling 2578 | -7/Recycling | Destroyed by Y-54 Guardian with Flak Gun Last Messages --------------- 02506_ Acquired 19 matter. 02506_ S-10 Pest destroyed. 02506_ Switching to secondary target: S-10 Pest. 02509_ Lgt. Assault Rifle fries itself beyond repair. 02509_ S-10 Pest destroyed. 02510_ Flight Unit fries itself beyond repair. 02512_ Lgt. Ion Engine fries itself beyond repair. 02512_ Acquired 13 matter. 02517_ Acquired 16 matter. 02517_ EXIT=FOUND 02524_ Machine disabled. 02527_ Lgt. Assault Rifle fries itself beyond repair. 02530_ Autobeam Turret destroyed. 02535_ Machine disabled. 02547_ Autobeam Turret destroyed. 02561_ Acquired 21 matter. LOCATION=UNKNOWN GOAL=ESCAPE 02575_ Y-54 Guardian springs to life. 02578_ Wheel destroyed. Map ----- +----------------------------------------------------+ | ??????????????????????????????? | | ??????????????????????????????? | | ??????????????????????????????? | | ??????????????????????????????? | | ??????????????????????????????? | | ??????????????????????????????? | | ??????????????????????????????? | | ??????????????????????????????? | | ??????????????????????????????? | | ??????????????????????????????? | | ?????? ?????????????????????? | | ?????? #????????????????????? | | ?????? #????????????????????? | | ?????? +????????????????????? | | ?????? #????????????????????? | | ?????# #????????????????????? | | ?????# ##???????????????????? | | ?????# ????????????????????? | | ?????# "????????????????????? | | ?????# #????????????????????? | | ?????# ###??????????????????? | | ?????# ! #??????????????????? | | ?????# !!#??????????????????? | | ????## !!???????????????????? | | ????#Y #????????????????????? | | ?????#@ #????????????????????? | | ?????# #????????????????????? | | ?????# #????????????????????? | | ?????# #????????????????????? | | ?????#####????????????????????? | | ??????????????????????????????? | | ??????????????????????????????? | | ??????????????????????????????? | | ??????????????????????????????? | | ??????????????????????????????? | | ??????????????????????????????? | | ??????????????????????????????? | | ??????????????????????????????? | | | | | | | | | | | | | | | | | | | | | | | | | +----------------------------------------------------+ Best States ------------- Heat Dissipation 25 Energy Generation 10 Energy Capacity 250 Matter Stores 300 Matter Capacity 300 Sight Range 16 Terrain Scan Density 10 Armor Coverage 150 Core Shielding 20 Evasion (%) 40 Recoil Reduction 2 Item Schematics ----------------- None Robot Schematics ------------------ None Fabricated ------------ Nothing Repaired ---------- Nothing Alien Tech Used ----------------- None Achievements -------------- None Challenges ------------ None Game ------ Seed KineticEtherialCharge Manual? 0 Play Time 00:18:07 Cumulative 84.5 hours Start 2025.07.04 @ 21:29:15 End 2025.07.04 @ 21:47:18 Sessions 1 Manual Loads 0 Difficulty Rogue Special Mode None Game No. 39 Rogue 39 Adventurer 0 Explorer 0 Win Type - Total 2 Types 1/0/1/0/0/0/0/0/0/0 Lore% 56 Gallery% 60 Achievement% 50 Wizard Run 0 Options --------- Layout 0 ASCII 0 Keyboard 0 Movement Vi Keybinds 0 Fullscreen 1 Font 24/Tamsyn Map View 76x50 Zoom Use 0% Tactical HUD 1 Map Filters NONE Filters NONE Steam 1 RUN: 63ba3e09-efe3-4813-a93d-5165db8a6da8